[Event "Early-Titled-Tuesday-Blitz-August-29-2023"]
[Site "Chess.com"]
[Date "2023.08.29"]
[Round "11"]
[White "Fleetw00dMac"]
[Black "FARIZA2018"]
[Result "1-0"]
[WhiteElo "2442"]
[BlackElo "2523"]
[TimeControl "180+1"]
[EndTime "10:04:14 PDT"]
[Termination "Fleetw00dMac won on time"]

1. d4 {[%clk 0:03:00.9]} 1... Nf6 {[%clk 0:02:59.9]} 2. c4 {[%clk 0:03:00.9]}
2... e6 {[%clk 0:02:59.8]} 3. Nc3 {[%clk 0:03:00.7]} 3... d5 {[%clk 0:02:59.4]}
4. cxd5 {[%clk 0:02:59.7]} 4... exd5 {[%clk 0:02:59.8]} 5. Bg5 {[%clk
0:02:59.4]} 5... Be7 {[%clk 0:03:00.3]} 6. e3 {[%clk 0:02:59.4]} 6... O-O {[%clk
0:03:00.7]} 7. Qc2 {[%clk 0:02:58.1]} 7... c6 {[%clk 0:03:00.9]} 8. Bd3 {[%clk
0:02:57.7]} 8... h6 {[%clk 0:03:01.1]} 9. Bh4 {[%clk 0:02:56.1]} 9... Be6 {[%clk
0:03:00.9]} 10. Nge2 {[%clk 0:02:54.6]} 10... Nbd7 {[%clk 0:03:01.4]} 11. O-O
{[%clk 0:02:54]} 11... Rc8 {[%clk 0:02:58]} 12. Rad1 {[%clk 0:02:47.6]} 12...
Ne8 {[%clk 0:02:52.3]} 13. Bg3 {[%clk 0:02:44.8]} 13... Bd6 {[%clk 0:02:43.6]}
14. Nf4 {[%clk 0:02:37.5]} 14... Qe7 {[%clk 0:02:25]} 15. Rfe1 {[%clk
0:02:34.7]} 15... Nef6 {[%clk 0:02:19.5]} 16. Nxe6 {[%clk 0:02:30.7]} 16... fxe6
{[%clk 0:02:19.6]} 17. e4 {[%clk 0:02:30.7]} 17... Bxg3 {[%clk 0:02:18.6]} 18.
hxg3 {[%clk 0:02:30.2]} 18... Qf7 {[%clk 0:02:16.1]} 19. exd5 {[%clk 0:02:22.2]}
19... cxd5 {[%clk 0:02:04]} 20. Qe2 {[%clk 0:02:15.8]} 20... Rce8 {[%clk
0:01:55.8]} 21. Nb5 {[%clk 0:02:14.7]} 21... Qe7 {[%clk 0:01:54.2]} 22. Nc7
{[%clk 0:02:12]} 22... Rc8 {[%clk 0:01:44.1]} 23. Qxe6+ {[%clk 0:02:10.7]} 23...
Qxe6 {[%clk 0:01:44.1]} 24. Nxe6 {[%clk 0:02:10.6]} 24... Rfe8 {[%clk
0:01:40.7]} 25. Bg6 {[%clk 0:01:59.6]} 25... Re7 {[%clk 0:01:40.4]} 26. Nf4
{[%clk 0:01:59.8]} 26... Kf8 {[%clk 0:01:32.3]} 27. Rxe7 {[%clk 0:01:56.2]}
27... Kxe7 {[%clk 0:01:32.5]} 28. Re1+ {[%clk 0:01:56.6]} 28... Kd6 {[%clk
0:01:30.9]} 29. Re6+ {[%clk 0:01:52.4]} 29... Kc7 {[%clk 0:01:31.2]} 30. Re7
{[%clk 0:01:52.8]} 30... Kd6 {[%clk 0:01:24]} 31. Re6+ {[%clk 0:01:49.8]} 31...
Kc7 {[%clk 0:01:23.7]} 32. f3 {[%clk 0:01:50.2]} 32... a6 {[%clk 0:01:14.4]} 33.
Re7 {[%clk 0:01:46.7]} 33... Kd6 {[%clk 0:01:13.2]} 34. Rxg7 {[%clk 0:01:46]}
34... Rc1+ {[%clk 0:01:11.9]} 35. Kh2 {[%clk 0:01:45.7]} 35... Rd1 {[%clk
0:01:11.1]} 36. Bf5 {[%clk 0:01:37.7]} 36... Rxd4 {[%clk 0:01:11.3]} 37. Rg6
{[%clk 0:01:38]} 37... Ke5 {[%clk 0:00:56]} 38. Bxd7 {[%clk 0:01:23.4]} 38...
Nxd7 {[%clk 0:00:56.2]} 39. Rxh6 {[%clk 0:01:23.7]} 39... Rd2 {[%clk 0:00:55.1]}
40. Re6+ {[%clk 0:01:20]} 40... Kf5 {[%clk 0:00:54.3]} 41. Re7 {[%clk
0:01:20.3]} 41... Ne5 {[%clk 0:00:51]} 42. Kh3 {[%clk 0:01:07.4]} 42... Rd1
{[%clk 0:00:46.9]} 43. Kh2 {[%clk 0:00:58.5]} 43... Rd2 {[%clk 0:00:45.8]} 44.
Kg1 {[%clk 0:00:58.3]} 44... b5 {[%clk 0:00:29.6]} 45. b4 {[%clk 0:00:50.5]}
45... d4 {[%clk 0:00:26.7]} 46. Re6 {[%clk 0:00:47.4]} 46... Rxa2 {[%clk
0:00:23.3]} 47. Rd6 {[%clk 0:00:47.7]} 47... Ra1+ {[%clk 0:00:22.9]} 48. Kf2
{[%clk 0:00:44]} 48... Ra2+ {[%clk 0:00:23.3]} 49. Kf1 {[%clk 0:00:44.1]} 49...
Ra1+ {[%clk 0:00:22.4]} 50. Kf2 {[%clk 0:00:44.3]} 50... Ra2+ {[%clk 0:00:23]}
51. Kg1 {[%clk 0:00:44.4]} 51... d3 {[%clk 0:00:22.8]} 52. Nxd3 {[%clk
0:00:41.2]} 52... Rd2 {[%clk 0:00:22.4]} 53. g4+ {[%clk 0:00:39.7]} 53... Kg5
{[%clk 0:00:20.6]} 54. f4+ {[%clk 0:00:40]} 54... Kxg4 {[%clk 0:00:17.8]} 55.
fxe5 {[%clk 0:00:40.3]} 55... Kg3 {[%clk 0:00:14.8]} 56. Rg6+ {[%clk 0:00:39.7]}
56... Kh4 {[%clk 0:00:14.4]} 57. Nf4 {[%clk 0:00:34.4]} 57... Rd1+ {[%clk
0:00:09.8]} 58. Kh2 {[%clk 0:00:34.3]} 58... Rd2 {[%clk 0:00:09.7]} 59. e6
{[%clk 0:00:32.7]} 59... a5 {[%clk 0:00:09.7]} 60. e7 {[%clk 0:00:33.1]} 1-0

[Event "Early-Titled-Tuesday-Blitz-August-29-2023"]
[Site "Chess.com"]
[Date "2023.08.29"]
[Round "11"]
[White "abhidabhi"]
[Black "KNVB"]
[Result "1-0"]
[WhiteElo "2907"]
[BlackElo "2780"]
[TimeControl "180+1"]
[EndTime "10:04:19 PDT"]
[Termination "abhidabhi won on time"]

1. Nf3 {[%clk 0:03:00.9]} 1... b6 {[%clk 0:02:59.1]} 2. g3 {[%clk 0:02:59.3]}
2... Bb7 {[%clk 0:02:59.5]} 3. Bg2 {[%clk 0:02:57.9]} 3... c5 {[%clk 0:02:59.7]}
4. O-O {[%clk 0:02:58.2]} 4... Nf6 {[%clk 0:03:00.1]} 5. d3 {[%clk 0:02:58.7]}
5... d5 {[%clk 0:02:55.8]} 6. e4 {[%clk 0:02:50.9]} 6... dxe4 {[%clk 0:02:56.7]}
7. Nfd2 {[%clk 0:02:51.2]} 7... e6 {[%clk 0:02:55.4]} 8. Nc3 {[%clk 0:02:50.8]}
8... Be7 {[%clk 0:02:52]} 9. Ndxe4 {[%clk 0:02:51]} 9... Nc6 {[%clk 0:02:51.5]}
10. Nxf6+ {[%clk 0:02:44.3]} 10... Bxf6 {[%clk 0:02:51.7]} 11. Ne4 {[%clk
0:02:44.4]} 11... Be7 {[%clk 0:02:51.9]} 12. Be3 {[%clk 0:02:40.9]} 12... O-O
{[%clk 0:02:51]} 13. c3 {[%clk 0:02:39.1]} 13... Qd7 {[%clk 0:02:50]} 14. Qe2
{[%clk 0:02:38]} 14... Rad8 {[%clk 0:02:49.7]} 15. Rfd1 {[%clk 0:02:37.6]} 15...
Ba6 {[%clk 0:02:33.3]} 16. Ng5 {[%clk 0:02:18.6]} 16... h6 {[%clk 0:02:03.4]}
17. Nh3 {[%clk 0:02:18.5]} 17... Qc7 {[%clk 0:01:36.6]} 18. Nf4 {[%clk
0:02:11.2]} 18... Ne5 {[%clk 0:01:13.5]} 19. a4 {[%clk 0:01:44.8]} 19... Rfe8
{[%clk 0:00:51.6]} 20. a5 {[%clk 0:01:44.9]} 20... Bb7 {[%clk 0:00:51.6]} 21.
axb6 {[%clk 0:01:44.5]} 21... axb6 {[%clk 0:00:39.6]} 22. Ra7 {[%clk 0:01:44.1]}
22... Nc6 {[%clk 0:00:39.8]} 23. Raa1 {[%clk 0:01:36.6]} 23... Bf8 {[%clk
0:00:33.2]} 24. Qh5 {[%clk 0:01:28.2]} 24... Ra8 {[%clk 0:00:22.1]} 25. Rxa8
{[%clk 0:01:21]} 25... Rxa8 {[%clk 0:00:22.8]} 26. d4 {[%clk 0:01:17.9]} 26...
cxd4 {[%clk 0:00:20.5]} 27. cxd4 {[%clk 0:01:18.2]} 27... Ra5 {[%clk 0:00:16.5]}
28. d5 {[%clk 0:01:11]} 28... Nb4 {[%clk 0:00:11]} 29. Bd2 {[%clk 0:01:10.4]}
29... exd5 {[%clk 0:00:06]} 30. Bxb4 {[%clk 0:01:10.2]} 30... Bxb4 {[%clk
0:00:05.9]} 31. Nxd5 {[%clk 0:01:09.6]} 31... Bxd5 {[%clk 0:00:04.7]} 32. Bxd5
{[%clk 0:01:09.7]} 32... Qe7 {[%clk 0:00:02]} 33. Qf3 {[%clk 0:01:08.4]} 33...
g6 {[%clk 0:00:02]} 34. h4 {[%clk 0:01:08.2]} 34... h5 {[%clk 0:00:02]} 35. Kg2
{[%clk 0:01:05.7]} 35... Kg7 {[%clk 0:00:02.2]} 36. Rd4 {[%clk 0:01:05.8]} 36...
Bc5 {[%clk 0:00:02]} 37. Rf4 {[%clk 0:01:06.1]} 37... f5 {[%clk 0:00:01.8]} 38.
Qc3+ {[%clk 0:01:03]} 38... Qf6 {[%clk 0:00:01.3]} 39. Qc4 {[%clk 0:00:58.7]}
39... Ra7 {[%clk 0:00:01.7]} 40. b4 {[%clk 0:00:56.6]} 40... Bd6 {[%clk
0:00:02.1]} 41. Rd4 {[%clk 0:00:54.9]} 41... Rc7 {[%clk 0:00:02.7]} 42. Qd3
{[%clk 0:00:43.7]} 42... Be5 {[%clk 0:00:02.7]} 43. Rc4 {[%clk 0:00:43.9]} 43...
Rxc4 {[%clk 0:00:02.9]} 44. Qxc4 {[%clk 0:00:41.9]} 44... f4 {[%clk 0:00:03.1]}
45. b5 {[%clk 0:00:33.9]} 45... fxg3 {[%clk 0:00:03.1]} 46. fxg3 {[%clk
0:00:34.8]} 46... Bd6 {[%clk 0:00:01.9]} 47. Qd3 {[%clk 0:00:26.9]} 47... Qe5
{[%clk 0:00:01.9]} 48. Be4 {[%clk 0:00:26.8]} 48... Qb2+ {[%clk 0:00:01.7]} 49.
Kh3 {[%clk 0:00:26.6]} 49... Qf6 {[%clk 0:00:02.2]} 50. Qe3 {[%clk 0:00:18]}
50... Qe6+ {[%clk 0:00:02.3]} 51. Kg2 {[%clk 0:00:17.9]} 51... Bc5 {[%clk
0:00:02.2]} 52. Qf3 {[%clk 0:00:16.3]} 52... Qe5 {[%clk 0:00:02]} 53. Bd5 {[%clk
0:00:16]} 53... Bd6 {[%clk 0:00:01]} 54. Qf7+ {[%clk 0:00:15.7]} 54... Kh6
{[%clk 0:00:01.6]} 55. Qf3 {[%clk 0:00:13.9]} 55... Qb2+ {[%clk 0:00:01.9]} 56.
Kh3 {[%clk 0:00:13.9]} 56... Qe5 {[%clk 0:00:02.3]} 57. Be4 {[%clk 0:00:12.6]}
57... Bc7 {[%clk 0:00:02]} 58. Qd3 {[%clk 0:00:12.9]} 1-0

[Event "Early-Titled-Tuesday-Blitz-August-29-2023"]
[Site "Chess.com"]
[Date "2023.08.29"]
[Round "11"]
[White "FairChess_on_YouTube"]
[Black "snowlord"]
[Result "1-0"]
[WhiteElo "3054"]
[BlackElo "2914"]
[TimeControl "180+1"]
[EndTime "10:04:23 PDT"]
[Termination "FairChess_on_YouTube won by checkmate"]

1. d4 {[%clk 0:03:00.9]} 1... d5 {[%clk 0:03:00.3]} 2. Nf3 {[%clk 0:02:56.7]}
2... Nf6 {[%clk 0:03:00.3]} 3. c4 {[%clk 0:02:55.4]} 3... c6 {[%clk 0:03:00.4]}
4. e3 {[%clk 0:02:54.4]} 4... Bf5 {[%clk 0:03:00.5]} 5. Nc3 {[%clk 0:02:53.1]}
5... e6 {[%clk 0:03:01]} 6. Nh4 {[%clk 0:02:53.7]} 6... Be4 {[%clk 0:03:01.4]}
7. f3 {[%clk 0:02:53.5]} 7... Bg6 {[%clk 0:03:01.7]} 8. Qb3 {[%clk 0:02:53.8]}
8... Qc7 {[%clk 0:03:02.1]} 9. Bd2 {[%clk 0:02:51]} 9... Be7 {[%clk 0:03:02.5]}
10. cxd5 {[%clk 0:02:44.8]} 10... cxd5 {[%clk 0:03:01.4]} 11. O-O-O {[%clk
0:02:43.1]} 11... Nc6 {[%clk 0:03:01.4]} 12. Nxg6 {[%clk 0:02:42.2]} 12... hxg6
{[%clk 0:03:01.4]} 13. Kb1 {[%clk 0:02:42.5]} 13... a6 {[%clk 0:03:02]} 14. Rc1
{[%clk 0:02:42.8]} 14... Rc8 {[%clk 0:02:56.2]} 15. Bd3 {[%clk 0:02:41]} 15...
Nd7 {[%clk 0:02:40.3]} 16. h4 {[%clk 0:02:28.6]} 16... b5 {[%clk 0:01:53.2]} 17.
Ne2 {[%clk 0:02:19.9]} 17... Nb6 {[%clk 0:01:39.3]} 18. Qd1 {[%clk 0:01:50.3]}
18... Nc4 {[%clk 0:01:38.7]} 19. e4 {[%clk 0:01:36.8]} 19... Qb6 {[%clk
0:01:13.6]} 20. exd5 {[%clk 0:01:30.6]} 20... exd5 {[%clk 0:01:14.1]} 21. Bxc4
{[%clk 0:01:08.9]} 21... bxc4 {[%clk 0:01:10.4]} 22. Bc3 {[%clk 0:01:09.2]}
22... Bd6 {[%clk 0:01:08.1]} 23. Qd2 {[%clk 0:01:04.9]} 23... Ne7 {[%clk
0:00:57.5]} 24. Rce1 {[%clk 0:00:54.8]} 24... Kd7 {[%clk 0:00:57.6]} 25. h5
{[%clk 0:00:47.4]} 25... gxh5 {[%clk 0:00:55]} 26. Qg5 {[%clk 0:00:45]} 26... g6
{[%clk 0:00:40.4]} 27. Qf6 {[%clk 0:00:38.4]} 27... Rhf8 {[%clk 0:00:40.5]} 28.
Nf4 {[%clk 0:00:35.7]} 28... Qc6 {[%clk 0:00:40.4]} 29. g4 {[%clk 0:00:27.8]}
29... Rce8 {[%clk 0:00:18.6]} 30. gxh5 {[%clk 0:00:20.2]} 30... Bc7 {[%clk
0:00:19.1]} 31. Qg5 {[%clk 0:00:16.6]} 31... gxh5 {[%clk 0:00:17.7]} 32. Nxh5
{[%clk 0:00:15.9]} 32... Qg6+ {[%clk 0:00:16.4]} 33. Qxg6 {[%clk 0:00:15.3]}
33... fxg6 {[%clk 0:00:17.3]} 34. Ng7 {[%clk 0:00:13.9]} 34... Rc8 {[%clk
0:00:14.7]} 35. Ne6 {[%clk 0:00:13.7]} 35... Rf7 {[%clk 0:00:13.5]} 36. Nc5+
{[%clk 0:00:10.7]} 36... Kc6 {[%clk 0:00:14]} 37. Nxa6 {[%clk 0:00:11]} 37...
Bd6 {[%clk 0:00:12.8]} 38. Nb4+ {[%clk 0:00:10.4]} 38... Kd7 {[%clk 0:00:13.1]}
39. a4 {[%clk 0:00:08.9]} 39... Rxf3 {[%clk 0:00:10]} 40. Rh7 {[%clk 0:00:08.1]}
40... Kd8 {[%clk 0:00:04.5]} 41. Re6 {[%clk 0:00:06.1]} 41... Kd7 {[%clk
0:00:03.4]} 42. Rxg6 {[%clk 0:00:05.9]} 42... Rf1+ {[%clk 0:00:03]} 43. Kc2
{[%clk 0:00:05.4]} 43... Rf5 {[%clk 0:00:03.7]} 44. Na6 {[%clk 0:00:04.8]} 44...
Rf2+ {[%clk 0:00:03.4]} 45. Kb1 {[%clk 0:00:04.6]} 45... Rcf8 {[%clk 0:00:02.6]}
46. Nc5+ {[%clk 0:00:04.2]} 46... Bxc5 {[%clk 0:00:02.7]} 47. dxc5 {[%clk
0:00:05.1]} 47... Rf1+ {[%clk 0:00:03.3]} 48. Ka2 {[%clk 0:00:05.7]} 48... R8f7
{[%clk 0:00:03.8]} 49. Rd6+ {[%clk 0:00:05.2]} 49... Kc7 {[%clk 0:00:03.4]} 50.
Ba5+ {[%clk 0:00:05]} 50... Kb7 {[%clk 0:00:02.6]} 51. Rd7+ {[%clk 0:00:05.5]}
51... Ka6 {[%clk 0:00:02.1]} 52. Bb6 {[%clk 0:00:05.9]} 52... Rxh7 {[%clk
0:00:01.5]} 53. Ra7# {[%clk 0:00:06]} 1-0

[Event "Early-Titled-Tuesday-Blitz-August-29-2023"]
[Site "Chess.com"]
[Date "2023.08.29"]
[Round "11"]
[White "tptagain"]
[Black "Vuk2000"]
[Result "1-0"]
[WhiteElo "2894"]
[BlackElo "2745"]
[TimeControl "180+1"]
[EndTime "10:04:29 PDT"]
[Termination "tptagain won on time"]

1. Nf3 {[%clk 0:03:00.9]} 1... Nf6 {[%clk 0:02:59.8]} 2. d4 {[%clk 0:03:00.1]}
2... e6 {[%clk 0:03:00]} 3. Bg5 {[%clk 0:03:00.6]} 3... d5 {[%clk 0:02:58.9]} 4.
Nbd2 {[%clk 0:03:00.5]} 4... Nbd7 {[%clk 0:02:58.2]} 5. e3 {[%clk 0:03:00.1]}
5... Be7 {[%clk 0:02:57.6]} 6. Bd3 {[%clk 0:02:58.6]} 6... b6 {[%clk 0:02:57.5]}
7. c3 {[%clk 0:02:53.5]} 7... Bb7 {[%clk 0:02:57.4]} 8. Qb1 {[%clk 0:02:50.9]}
8... Qc8 {[%clk 0:02:37.5]} 9. Ne5 {[%clk 0:02:48.8]} 9... h6 {[%clk 0:02:29.5]}
10. Bxf6 {[%clk 0:02:39.4]} 10... gxf6 {[%clk 0:02:17.3]} 11. Nxd7 {[%clk
0:02:31.4]} 11... Qxd7 {[%clk 0:02:17]} 12. b4 {[%clk 0:02:30.4]} 12... a5
{[%clk 0:01:43]} 13. b5 {[%clk 0:02:30.1]} 13... f5 {[%clk 0:01:36.2]} 14. g3
{[%clk 0:02:26.6]} 14... O-O-O {[%clk 0:01:21.4]} 15. Nf3 {[%clk 0:02:23.8]}
15... Bd6 {[%clk 0:01:13.4]} 16. Ke2 {[%clk 0:02:23.5]} 16... Kb8 {[%clk
0:01:13.3]} 17. a4 {[%clk 0:02:21.2]} 17... f6 {[%clk 0:01:11.2]} 18. Ra2 {[%clk
0:02:18.9]} 18... Qf7 {[%clk 0:01:05.2]} 19. Kd2 {[%clk 0:02:15.8]} 19... Qh5
{[%clk 0:00:56.7]} 20. Be2 {[%clk 0:02:14.3]} 20... Qe8 {[%clk 0:00:51.2]} 21.
Kc1 {[%clk 0:02:12.2]} 21... Bc8 {[%clk 0:00:47.2]} 22. Nh4 {[%clk 0:02:04.7]}
22... Qd7 {[%clk 0:00:29.8]} 23. Bd3 {[%clk 0:02:01.7]} 23... Rhg8 {[%clk
0:00:30.5]} 24. Kb2 {[%clk 0:02:00.5]} 24... Rg4 {[%clk 0:00:29.8]} 25. f4
{[%clk 0:01:59.1]} 25... Qf7 {[%clk 0:00:27.8]} 26. Ka1 {[%clk 0:01:58.7]} 26...
Rxh4 {[%clk 0:00:14.8]} 27. gxh4 {[%clk 0:01:58.7]} 27... Qh5 {[%clk 0:00:14.8]}
28. Qe1 {[%clk 0:01:40.3]} 28... e5 {[%clk 0:00:14.8]} 29. Rg1 {[%clk
0:01:33.7]} 29... exf4 {[%clk 0:00:09.3]} 30. exf4 {[%clk 0:01:33.5]} 30... Bxf4
{[%clk 0:00:09.6]} 31. Qe2 {[%clk 0:01:04.3]} 31... Qxh4 {[%clk 0:00:04.6]} 32.
Qf3 {[%clk 0:01:04.5]} 32... Bg5 {[%clk 0:00:02.6]} 33. Bxf5 {[%clk 0:01:01.5]}
33... Bxf5 {[%clk 0:00:02.1]} 34. Qxf5 {[%clk 0:01:02.4]} 34... Qh5 {[%clk
0:00:02.5]} 35. Qe6 {[%clk 0:00:58.4]} 35... Qe8 {[%clk 0:00:02.4]} 36. Qxe8
{[%clk 0:00:57.6]} 36... Rxe8 {[%clk 0:00:03.3]} 37. Rag2 {[%clk 0:00:55.8]}
37... Re3 {[%clk 0:00:03.8]} 38. Kb2 {[%clk 0:00:55.7]} 38... h5 {[%clk
0:00:04.4]} 39. Kc2 {[%clk 0:00:54.5]} 39... h4 {[%clk 0:00:04.4]} 40. Rf1
{[%clk 0:00:53.9]} 40... Kb7 {[%clk 0:00:04.5]} 41. Rgf2 {[%clk 0:00:39.7]}
41... Re4 {[%clk 0:00:04.8]} 42. Rd1 {[%clk 0:00:30.5]} 42... Re3 {[%clk
0:00:05.2]} 43. Rd3 {[%clk 0:00:30.5]} 43... Re1 {[%clk 0:00:05.6]} 44. Rdf3
{[%clk 0:00:29.5]} 44... Rc1+ {[%clk 0:00:05.3]} 45. Kb2 {[%clk 0:00:29.9]}
45... Re1 {[%clk 0:00:05.3]} 46. Rf5 {[%clk 0:00:29.7]} 46... Re3 {[%clk
0:00:05.4]} 47. Rxd5 {[%clk 0:00:29.1]} 47... h3 {[%clk 0:00:03.4]} 48. Rdf5
{[%clk 0:00:26.8]} 48... Bh4 {[%clk 0:00:03.1]} 49. Rc2 {[%clk 0:00:25.6]} 49...
Kc8 {[%clk 0:00:01.8]} 50. Kb3 {[%clk 0:00:25.6]} 50... Bg5 {[%clk 0:00:02.1]}
51. Kc4 {[%clk 0:00:25.1]} 51... Re1 {[%clk 0:00:02]} 52. Rf3 {[%clk 0:00:24.6]}
52... Ra1 {[%clk 0:00:02.2]} 53. Kb3 {[%clk 0:00:25]} 53... Rb1+ {[%clk
0:00:02.5]} 54. Rb2 {[%clk 0:00:25.5]} 54... Rc1 {[%clk 0:00:02.2]} 55. Rxh3
{[%clk 0:00:25.4]} 55... Kd7 {[%clk 0:00:02.8]} 56. Rc2 {[%clk 0:00:25.3]} 56...
Rb1+ {[%clk 0:00:02.7]} 57. Rb2 {[%clk 0:00:25.6]} 57... Ra1 {[%clk 0:00:03]}
58. Re2 {[%clk 0:00:25.7]} 58... Rb1+ {[%clk 0:00:03]} 59. Kc4 {[%clk
0:00:26.2]} 59... Ra1 {[%clk 0:00:03.3]} 60. Kd5 {[%clk 0:00:26.9]} 60... Rxa4
{[%clk 0:00:01.7]} 61. Rh7+ {[%clk 0:00:27.5]} 61... Kc8 {[%clk 0:00:01.8]} 62.
Re8+ {[%clk 0:00:26.4]} 62... Kb7 {[%clk 0:00:01.7]} 63. Rhh8 {[%clk 0:00:25.7]}
1-0

[Event "Early-Titled-Tuesday-Blitz-August-29-2023"]
[Site "Chess.com"]
[Date "2023.08.29"]
[Round "11"]
[White "GianmarcoVaR"]
[Black "mapleaff"]
[Result "1-0"]
[WhiteElo "2746"]
[BlackElo "2332"]
[TimeControl "180+1"]
[EndTime "10:04:30 PDT"]
[Termination "GianmarcoVaR won by resignation"]

1. e4 {[%clk 0:03:00.9]} 1... e5 {[%clk 0:02:56.5]} 2. Nf3 {[%clk 0:03:01]} 2...
Nc6 {[%clk 0:02:56.7]} 3. Bc4 {[%clk 0:03:01.6]} 3... Bc5 {[%clk 0:02:56.3]} 4.
O-O {[%clk 0:03:01]} 4... Nf6 {[%clk 0:02:54.9]} 5. d3 {[%clk 0:03:01.4]} 5...
h6 {[%clk 0:02:53.3]} 6. c3 {[%clk 0:03:00]} 6... d6 {[%clk 0:02:47.8]} 7. Re1
{[%clk 0:02:59.4]} 7... a6 {[%clk 0:02:46.1]} 8. Bb3 {[%clk 0:02:59.1]} 8... O-O
{[%clk 0:02:44.9]} 9. h3 {[%clk 0:02:58.1]} 9... Ba7 {[%clk 0:02:41.2]} 10. Nbd2
{[%clk 0:02:56.7]} 10... Ne7 {[%clk 0:02:10.4]} 11. Nf1 {[%clk 0:02:45.8]} 11...
Ng6 {[%clk 0:02:09.8]} 12. Ng3 {[%clk 0:02:43.4]} 12... Be6 {[%clk 0:02:03.3]}
13. d4 {[%clk 0:01:44.8]} 13... Re8 {[%clk 0:01:40.6]} 14. Be3 {[%clk
0:01:32.1]} 14... d5 {[%clk 0:01:14.8]} 15. Nxe5 {[%clk 0:01:05]} 15... Nxe5
{[%clk 0:01:09.5]} 16. dxe5 {[%clk 0:01:05.2]} 16... Nxe4 {[%clk 0:01:10.1]} 17.
Nxe4 {[%clk 0:01:00.9]} 17... dxe4 {[%clk 0:01:11]} 18. Bxa7 {[%clk 0:00:56.5]}
18... Rxa7 {[%clk 0:00:54.5]} 19. Bxe6 {[%clk 0:00:56.2]} 19... fxe6 {[%clk
0:00:45]} 20. Rxe4 {[%clk 0:00:54.2]} 20... Ra8 {[%clk 0:00:31]} 21. Rd4 {[%clk
0:00:50.8]} 21... Qg5 {[%clk 0:00:29.7]} 22. Qe2 {[%clk 0:00:38.3]} 22... Rad8
{[%clk 0:00:25.5]} 23. Rad1 {[%clk 0:00:38.7]} 23... Rxd4 {[%clk 0:00:13]} 24.
Rxd4 {[%clk 0:00:39.6]} 24... Re7 {[%clk 0:00:06]} 25. Rd8+ {[%clk 0:00:37.1]}
25... Kf7 {[%clk 0:00:05.8]} 26. Qf3+ {[%clk 0:00:31.4]} 26... Kg6 {[%clk
0:00:05.5]} 27. Qe4+ {[%clk 0:00:27.9]} 27... Qf5 {[%clk 0:00:05.2]} 28. Qe3
{[%clk 0:00:12.1]} 28... Rf7 {[%clk 0:00:03.7]} 29. Rd2 {[%clk 0:00:05.3]} 29...
Qb1+ {[%clk 0:00:03.7]} 30. Kh2 {[%clk 0:00:05.2]} 30... Kh7 {[%clk 0:00:02.5]}
31. a4 {[%clk 0:00:03.5]} 31... Qf5 {[%clk 0:00:02.8]} 32. a5 {[%clk 0:00:03.4]}
32... h5 {[%clk 0:00:01.9]} 33. g3 {[%clk 0:00:02.3]} 33... Qg6 {[%clk
0:00:02.1]} 34. h4 {[%clk 0:00:02.2]} 34... Qf5 {[%clk 0:00:02.5]} 35. Kg2
{[%clk 0:00:02.7]} 35... Qg6 {[%clk 0:00:03]} 36. Rd4 {[%clk 0:00:03.1]} 36...
Qf5 {[%clk 0:00:03.4]} 37. Rf4 {[%clk 0:00:03.3]} 37... Qg6 {[%clk 0:00:04.3]}
38. Qe4 {[%clk 0:00:03.3]} 38... Qxe4+ {[%clk 0:00:04.1]} 39. Rxe4 {[%clk
0:00:03.5]} 39... Kg6 {[%clk 0:00:04.5]} 40. Rd4 {[%clk 0:00:02.3]} 40... Kf5
{[%clk 0:00:04.3]} 41. Rf4+ {[%clk 0:00:02.7]} 41... Kg6 {[%clk 0:00:04.4]} 42.
Rxf7 {[%clk 0:00:03.2]} 42... Kxf7 {[%clk 0:00:05.3]} 43. Kf3 {[%clk 0:00:03.4]}
43... g5 {[%clk 0:00:05.4]} 44. hxg5 {[%clk 0:00:03.5]} 44... Kg6 {[%clk
0:00:06]} 45. Kf4 {[%clk 0:00:03.9]} 45... b6 {[%clk 0:00:06.9]} 46. b4 {[%clk
0:00:03.8]} 46... b5 {[%clk 0:00:07]} 47. Ke4 {[%clk 0:00:02.4]} 47... Kxg5
{[%clk 0:00:07.2]} 48. f3 {[%clk 0:00:02.7]} 48... h4 {[%clk 0:00:03.2]} 49.
gxh4+ {[%clk 0:00:02.8]} 49... Kxh4 {[%clk 0:00:04.1]} 50. Kf4 {[%clk 0:00:02]}
50... Kh5 {[%clk 0:00:04.1]} 51. Kg3 {[%clk 0:00:01.5]} 51... Kg5 {[%clk
0:00:04.4]} 52. f4+ {[%clk 0:00:01.9]} 52... Kg6 {[%clk 0:00:04.8]} 53. Kg4
{[%clk 0:00:02.1]} 53... Kh6 {[%clk 0:00:05.1]} 54. f5 {[%clk 0:00:02.4]} 54...
exf5+ {[%clk 0:00:05]} 55. Kxf5 {[%clk 0:00:03.2]} 55... c5 {[%clk 0:00:05.4]}
56. Ke6 {[%clk 0:00:04.1]} 56... cxb4 {[%clk 0:00:05.9]} 57. cxb4 {[%clk
0:00:05]} 57... Kg7 {[%clk 0:00:06.2]} 58. Kd6 {[%clk 0:00:05.9]} 58... Kf7
{[%clk 0:00:06.6]} 59. Kd7 {[%clk 0:00:05.9]} 59... Kf8 {[%clk 0:00:06.7]} 60.
e6 {[%clk 0:00:06.8]} 1-0